Portfolio,Expense Area,Cost Centre,Expense Type,Account Code,Amount,Supplier Name,SupplierId,Pay Date,Transaction No.
Resources & Corporate Governance ,Toilet Cleaning,WBC01,Personal Protective Clothing,0340,19.28,Arco Limited,100015,13/12/2012,10176909
Resources & Corporate Governance ,Grounds Maintenance,WGM00,Personal Protective Clothing,0340,202.55,Arco Limited,100015,13/12/2012,10176909
Resources & Corporate Governance ,Highways,WHG00,Personal Protective Clothing,0340,28.94,Arco Limited,100015,13/12/2012,10176909
Resources & Corporate Governance,Handy man,WHM00,Personal Protective Clothing,0340,31.96,Arco Limited,100015,13/12/2012,10176909
Resources & Corporate Governance ,Street Cleansing,WSC00,Personal Protective Clothing,0340,231.48,Arco Limited,100015,13/12/2012,10176909
Resources & Corporate Governance ,Garage Internal,WVR01,Personal Protective Clothing,0340,38.58,Arco Limited,100015,13/12/2012,10176909
Resources & Corporate Governance ,Domestic Waste Collection,WWC00,Personal Protective Clothing,0340,405.09,Arco Limited,100015,13/12/2012,10176909
Resources & Corporate Governance ,Trade Waste Collection,WWC01,Personal Protective Clothing,0340,38.58,Arco Limited,100015,13/12/2012,10176909
Resources & Corporate Governance ,Toilet Cleaning,WBC01,Personal Protective Clothing,0340,24.27,Arco Limited,100015,13/12/2012,10177200
Resources & Corporate Governance ,Grounds Maintenance,WGM00,Personal Protective Clothing,0340,254.76,Arco Limited,100015,13/12/2012,10177200
Resources & Corporate Governance ,Highways,WHG00,Personal Protective Clothing,0340,36.40,Arco Limited,100015,13/12/2012,10177200
Resources & Corporate Governance ,Street Cleansing,WSC00,Personal Protective Clothing,0340,291.15,Arco Limited,100015,13/12/2012,10177200
Resources & Corporate Governance ,Garage Internal,WVR01,Personal Protective Clothing,0340,48.53,Arco Limited,100015,13/12/2012,10177200
Resources & Corporate Governance ,Domestic Waste Collection,WWC00,Personal Protective Clothing,0340,509.51,Arco Limited,100015,13/12/2012,10177200
Resources & Corporate Governance ,Trade Waste Collection,WWC01,Personal Protective Clothing,0340,48.50,Arco Limited,100015,13/12/2012,10177200
Sustainable Inclusive Communities,Housing Options Team,HOT00,Rents,0140,1218.00,Alma Lodge Hotel,100026,20/12/2012,10177585
Housing Revenue Account ,Unplanned Maintenance and Repair,UMR00,R&M External Contractors,0100,1804.67,AWM Electrical Contractors Ltd,100051,13/12/2012,10177708
Housing Revenue Account ,Unplanned Maintenance and Repair,UMR00,R&M External Contractors,0100,774.77,AWM Electrical Contractors Ltd,100051,13/12/2012,10177709
Housing Revenue Account ,Unplanned Maintenance and Repair,UMR00,R&M External Contractors,0100,638.48,AWM Electrical Contractors Ltd,100051,13/12/2012,10177712
Housing Revenue Account ,Unplanned Maintenance and Repair,UMR00,R&M External Contractors,0100,1750.19,AWM Electrical Contractors Ltd,100051,20/12/2012,10177933
Housing Revenue Account ,Unplanned Maintenance and Repair,UMR00,R&M External Contractors,0100,440.51,AWM Electrical Contractors Ltd,100051,20/12/2012,10177934
Housing Revenue Account ,Sheltered Housing Team,MAN21,Estates,0457,82.52,AWM Electrical Contractors Ltd,100051,20/12/2012,10177934
Housing Revenue Account ,Unplanned Maintenance and Repair,UMR00,R&M External Contractors,0100,4174.08,AWM Electrical Contractors Ltd,100051,20/12/2012,10178033
Housing Revenue Account ,Unplanned Maintenance and Repair,UMR00,R&M External Contractors,0100,840.84,Andy Woods Landscapes,100078,06/12/2012,10177386
Capital Program ,Kitchen Modifications,HIK10,Capital Contract Payments,5000,6893.58,A C E Carpentry & Joinery Contractors Ltd,100085,06/12/2012,10177097
Capital Program ,Kitchen Modifications,HIK10,Capital Contract Payments,5000,6893.58,A C E Carpentry & Joinery Contractors Ltd,100085,06/12/2012,10177100
Capital Program ,Kitchen Modifications,HIK10,Capital Contract Payments,5000,6893.58,A C E Carpentry & Joinery Contractors Ltd,100085,13/12/2012,10177536
Capital Program ,Kitchen Modifications,HIK10,Capital Contract Payments,5000,13787.16,A C E Carpentry & Joinery Contractors Ltd,100085,20/12/2012,10177858
Sustainable Environment ,Caldecott Park/Town Centre Area,PKS00,Maintenance of Equipment,0301,708.00,A H S Ltd,100128,20/12/2012,10175957
Resources & Corporate Governance ,Grounds Maintenance,WGM00,Materials,0303,420.00,Banks Amenity Products Ltd,100133,20/12/2012,10177863
Resources & Corporate Governance ,Council Tax and NNDR Collection,CTX01,External Contractor & Operator,0742,134.00,Bristow & Sutor,100159,06/12/2012,10176501
Resources & Corporate Governance ,Council Tax and NNDR Collection,CTX01,External Contractor & Operator,0742,38.64,Bristow & Sutor,100159,06/12/2012,10177132
Housing Revenue Account ,Unplanned Maintenance and Repair,UMR00,R&M External Contractors,0100,1995.58,Bowen Builders,100241,13/12/2012,10177515
Housing Revenue Account ,Unplanned Maintenance and Repair,UMR00,R&M External Contractors,0100,585.13,Bowen Builders,100241,13/12/2012,10177705
Housing Revenue Account ,Unplanned Maintenance and Repair,UMR00,R&M External Contractors,0100,480.19,Bowen Builders,100241,20/12/2012,10177932
Capital Program ,Disabled Adaptations,HCR01,Capital Contract Payments,5000,235.55,Bowen Builders,100241,20/12/2012,10177932
Economy Development & Culture,Economic Development General,ECD00,Development Activities,0450,4650.00,Centre-Stage Promotions,100426,06/12/2012,10177043
Economy Development & Culture,Economic Development General,ECD00,Development Activities,0450,4650.00,Centre-Stage Promotions,100426,06/12/2012,10177044
Sustainable Environment ,Clinical Waste,REF04,External Contractor & Operator,0742,513.03,OCS Group UK Ltd t/a Cannon,100436,13/12/2012,10177627
Housing Revenue Account ,Stretton Court AP,AGP13,New Equipment,0300,952.00,Curtains By Design,100526,06/12/2012,10177109
Resources & Corporate Governance,Corporate Property R&M,CPA01,R&M External Contractors,0100,590.03,Dunchurch Services (Rugby) Ltd,100565,20/12/2012,10177651
Capital Program ,Disabled Facilities Grant,REN01,Capital Grants,5014,671.00,Bob Doyle,100575,13/12/2012,10177259
Capital Program ,Private Sector Renovation Loans,REN00,Capital Contract Payments,5000,2775.97,Bob Doyle,100575,20/12/2012,10177839
Capital Program ,Bathroom Modifications,HIS01,Capital Contract Payments,5000,2495.00,JADA Building & Maintenance Services Ltd,100583,13/12/2012,10177099
Capital Program ,Bathroom Modifications,HIS01,Capital Contract Payments,5000,4990.00,JADA Building & Maintenance Services Ltd,100583,13/12/2012,10177206
Housing Revenue Account ,Unplanned Maintenance and Repair,UMR00,R&M External Contractors,0100,6824.73,JADA Building & Maintenance Services Ltd,100583,13/12/2012,10177707
Capital Program ,Kitchen Modifications,HIK10,Capital Contract Payments,5000,2100.00,JADA Building & Maintenance Services Ltd,100583,13/12/2012,10177707
Housing Revenue Account ,Unplanned Maintenance and Repair,UMR00,R&M External Contractors,0100,5850.91,Lee Davies Decorating,100600,13/12/2012,10177715
Resources & Corporate Governance,Corporate Property Central Utilities,CPA02,Gas,0131,5866.45,ESPO,100641,13/12/2012,10176920
Resources & Corporate Governance,Corporate Property Central Utilities,CPA02,Gas,0131,1769.37,ESPO,100641,20/12/2012,10177798
Housing Revenue Account ,Tanser Court AP,AGP17,Gas,0131,1506.87,ESPO,100641,20/12/2012,10177803
Resources & Corporate Governance ,WSU Depot,WDP00,Gas,0131,604.25,ESPO,100641,20/12/2012,10177816
Resources & Corporate Governance,Corporate Property Central Utilities,CPA02,Gas,0131,2678.48,ESPO,100641,20/12/2012,10177821
Resources & Corporate Governance ,Town Hall,OFF00,Materials,0303,1010.00,Greenham,100890,13/12/2012,10177119
Capital Program ,Crematorium Project,BUR04,Consultancy Costs,0740,2714.00,Godfrey-Payton & Co,100909,20/12/2012,10177719
Resources & Corporate Governance ,Human Resources Centralised Services,RES31,Recruitment Expenses,0012,499.00,TMP (UK) LTD,100972,06/12/2012,10177117
Resources & Corporate Governance ,Human Resources Centralised Services,RES31,Publicity & Marketing,0377,35.00,TMP (UK) LTD,100972,06/12/2012,10177117
Resources & Corporate Governance,Corporate Property R&M,CPA01,R&M External Contractors,0100,532.50,ThyssenKrupp Elevator UK,100985,20/12/2012,10177777
Capital Program ,Bathroom Modifications,HIS01,Capital Contract Payments,5000,2985.00,B Hartwell Plumbers Ltd,100989,20/12/2012,10177605
Housing Revenue Account ,Control Centre (HRA),CCE00,New Equipment,0300,5100.00,Chubb Systems LTD,101154,20/12/2012,10177776
Resources & Corporate Governance ,Grounds Maintenance,WGM00,External Contractor & Operator,0742,7484.00,K A Hicks,101216,06/12/2012,10177178
,User Balance Sheet Cost Centre,BSU,Section Agreements,9865,33650.00,Long Lawford Parish Council,101228,06/12/2012,10177258
,User Balance Sheet Cost Centre,BSU,Section Agreements,9865,8198.76,Long Lawford Parish Council,101228,13/12/2012,10177519
Housing Revenue Account ,Unplanned Maintenance and Repair,UMR00,R&M External Contractors,0100,3560.00,MBG Decorators (Rugby Ltd),101288,06/12/2012,10177385
Housing Revenue Account ,Unplanned Maintenance and Repair,UMR00,R&M External Contractors,0100,3800.00,MBG Decorators (Rugby Ltd),101288,13/12/2012,10177592
Housing Revenue Account ,Unplanned Maintenance and Repair,UMR00,R&M External Contractors,0100,3995.12,MBG Decorators (Rugby Ltd),101288,20/12/2012,10177853
Resources & Corporate Governance,Handy man,WHM00,Materials,0303,553.00,Melbros Ltd,101291,20/12/2012,10176300
Resources & Corporate Governance,Handy man,WHM00,Materials,0303,561.60,Melbros Ltd,101291,06/12/2012,10177231
Resources & Corporate Governance,Handy man,WHM00,Materials,0303,417.28,Melbros Ltd,101291,13/12/2012,10177242
Resources & Corporate Governance,Handy man,WHM00,Materials,0303,-417.28,Melbros Ltd,101291,20/12/2012,10177266
Resources & Corporate Governance,Handy man,WHM00,Materials,0303,473.44,Melbros Ltd,101291,20/12/2012,10177269
Resources & Corporate Governance,Handy man,WHM00,Materials,0303,546.00,Melbros Ltd,101291,20/12/2012,10177287
Resources & Corporate Governance,Handy man,WHM00,Materials,0303,836.81,Melbros Ltd,101291,20/12/2012,10177289
Resources & Corporate Governance,Handy man,WHM00,Materials,0303,1134.82,Melbros Ltd,101291,20/12/2012,10177299
Resources & Corporate Governance,Handy man,WHM00,Materials,0303,668.71,Melbros Ltd,101291,20/12/2012,10177307
Resources & Corporate Governance,Handy man,WHM00,Materials,0303,545.00,Melbros Ltd,101291,13/12/2012,10177313
Resources & Corporate Governance,Handy man,WHM00,Materials,0303,545.00,Melbros Ltd,101291,13/12/2012,10177314
Resources & Corporate Governance,Handy man,WHM00,Materials,0303,1471.79,Melbros Ltd,101291,20/12/2012,10177339
Resources & Corporate Governance,Handy man,WHM00,Materials,0303,430.13,Melbros Ltd,101291,13/12/2012,10177345
Economy Development & Culture,Street Furniture,HIG01,External Contractor & Operator,0742,2365.65,Midland Signs (Leicester) Ltd,101295,06/12/2012,10177104
Resources & Corporate Governance,Corporate Property R&M,CPA01,R&M External Contractors,0100,4094.00,Msm Environmental Services,101317,20/12/2012,10177849
Housing Revenue Account ,Unplanned Maintenance and Repair,UMR00,R&M External Contractors,0100,1980.00,Msm Environmental Services,101317,20/12/2012,10177850
Housing Revenue Account ,Unplanned Maintenance and Repair,UMR00,R&M External Contractors,0100,616.00,Msm Environmental Services,101317,20/12/2012,10177851
Sustainable Environment ,Street Scene,ENV30,R&M External Contractors,0100,500.00,Middlemarch Environmental Ltd,101337,20/12/2012,10177885
Resources & Corporate Governance ,Domestic Waste Collection,WWC00,Vehicle Repair and Maintenance,0200,656.10,Noden Truck Centre Ltd,101368,06/12/2012,10176973
Resources & Corporate Governance ,Domestic Waste Collection,WWC00,Vehicle Repair and Maintenance,0200,777.16,Noden Truck Centre Ltd,101368,13/12/2012,10177414
Economy Development & Culture,Visitor Centre,VSC00,Events Tickets - Zero Rated,1405,1255.89,National Express Ltd,101392,06/12/2012,10177152
Capital Program ,Disabled Facilities Grant,REN01,Capital Grants,5014,2575.33,Heart of England Housing Association,101400,13/12/2012,10177260
Capital Program ,Disabled Facilities Grant,REN01,Capital Grants,5014,3870.00,Heart of England Housing Association,101400,20/12/2012,10177840
Capital Program ,Parish and Rural Capital Spending,CGR03,Capital Grants,5014,5000.00,Oakfield Cricket Club,101417,20/12/2012,10177953
Sustainable Inclusive Communities,Sewage Disposal Plant,SDP00,R&M External Contractors,0100,520.28,PJT Pumping Services,101438,13/12/2012,10177470
Sustainable Inclusive Communities,Sewage Disposal Plant,SDP00,R&M External Contractors,0100,520.28,PJT Pumping Services,101438,20/12/2012,10178051
Sustainable Environment ,Caldecott Park/Town Centre Area,PKS00,R&M External Contractors,0100,512.52,PJT Pumping Services,101438,20/12/2012,10178052
Capital Program ,Open Spaces Refurbishment,LEI08,Capital Contract Payments,5000,4254.00,Post To Post Fencing,101490,13/12/2012,10177558
Capital Program ,Heating Upgrades,HIM01,Capital Contract Payments,5000,18424.00,Reeds Plumbing & Heating Contractors Ltd,101504,20/12/2012,10177745
Capital Program ,Heating Upgrades,HIM01,Capital Contract Payments,5000,3520.00,Reeds Plumbing & Heating Contractors Ltd,101504,20/12/2012,10178040
Resources & Corporate Governance ,Town Hall,OFF00,BIDS levy,0145,8803.69,Rugby Borough Council,101516,20/12/2012,10176029
Resources & Corporate Governance ,The Lawn,OFF01,BIDS levy,0145,2942.71,Rugby Borough Council,101516,20/12/2012,10176030
Economy Development & Culture,Art Gallery and Museum,AGM00,Postage & Distribution,0370,8.14,Royal Mail,101554,20/12/2012,10175556
Economy Development & Culture,Building Control Services,BCS00,Postage & Distribution,0370,3.42,Royal Mail,101554,20/12/2012,10175556
Economy Development & Culture,Building Regulation Fee Earning Account,BCS99,Postage & Distribution,0370,4.54,Royal Mail,101554,20/12/2012,10175556
Economy Development & Culture,Car Parks General,CPK01,Postage & Distribution,0370,43.11,Royal Mail,101554,20/12/2012,10175556
Resources & Corporate Governance,Central Business Support Services,CSS15,Postage & Distribution,0370,499.79,Royal Mail,101554,20/12/2012,10175556
Resources & Corporate Governance ,Council Tax and NNDR Collection,CTX01,Postage & Distribution,0370,271.31,Royal Mail,101554,20/12/2012,10175556
Economy Development & Culture,Decrim. of Car Parking on street parking,DPE02,Postage & Distribution,0370,172.44,Royal Mail,101554,20/12/2012,10175556
Resources & Corporate Governance ,Electoral Registration,ERG00,Postage & Distribution,0370,264.88,Royal Mail,101554,20/12/2012,10175556
Sustainable Inclusive Communities,Housing Benefit Administration,HBA00,Postage & Distribution,0370,162.68,Royal Mail,101554,20/12/2012,10175556
Housing Revenue Account ,Supervision and Management General,MAN00,Postage & Distribution,0370,235.68,Royal Mail,101554,20/12/2012,10175556
Economy Development & Culture,Planning General/Income,PLN00,Postage & Distribution,0370,248.89,Royal Mail,101554,20/12/2012,10175556
Economy Development & Culture,Visitor Centre,VSC00,Postage & Distribution,0370,4.32,Royal Mail,101554,20/12/2012,10175556
Resources & Corporate Governance ,General Administration,WAD00,Postage & Distribution,0370,39.13,Royal Mail,101554,20/12/2012,10175556
Economy Development & Culture,Art Gallery and Museum,AGM00,Postage & Distribution,0370,2.38,Royal Mail,101554,20/12/2012,10175961
Economy Development & Culture,Building Control Services,BCS00,Postage & Distribution,0370,0.52,Royal Mail,101554,20/12/2012,10175961
Economy Development & Culture,Building Regulation Fee Earning Account,BCS99,Postage & Distribution,0370,0.68,Royal Mail,101554,20/12/2012,10175961
Economy Development & Culture,Car Parks General,CPK01,Postage & Distribution,0370,58.82,Royal Mail,101554,20/12/2012,10175961
Resources & Corporate Governance,Central Business Support Services,CSS15,Postage & Distribution,0370,181.86,Royal Mail,101554,20/12/2012,10175961
Resources & Corporate Governance ,Council Tax and NNDR Collection,CTX01,Postage & Distribution,0370,3.73,Royal Mail,101554,20/12/2012,10175961
Economy Development & Culture,Decrim. of Car Parking on street parking,DPE02,Postage & Distribution,0370,235.30,Royal Mail,101554,20/12/2012,10175961
Resources & Corporate Governance ,Electoral Registration,ERG00,Postage & Distribution,0370,276.14,Royal Mail,101554,20/12/2012,10175961
Sustainable Inclusive Communities,Housing Benefit Administration,HBA00,Postage & Distribution,0370,92.04,Royal Mail,101554,20/12/2012,10175961
Housing Revenue Account ,Supervision and Management General,MAN00,Postage & Distribution,0370,35.30,Royal Mail,101554,20/12/2012,10175961
Economy Development & Culture,Planning General/Income,PLN00,Postage & Distribution,0370,117.62,Royal Mail,101554,20/12/2012,10175961
Economy Development & Culture,Visitor Centre,VSC00,Postage & Distribution,0370,1.99,Royal Mail,101554,20/12/2012,10175961
Resources & Corporate Governance ,General Administration,WAD00,Postage & Distribution,0370,14.25,Royal Mail,101554,20/12/2012,10175961
Economy Development & Culture,Art Gallery and Museum,AGM00,Postage & Distribution,0370,9.13,Royal Mail,101554,20/12/2012,10176615
Economy Development & Culture,Building Control Services,BCS00,Postage & Distribution,0370,3.22,Royal Mail,101554,20/12/2012,10176615
Economy Development & Culture,Building Regulation Fee Earning Account,BCS99,Postage & Distribution,0370,4.26,Royal Mail,101554,20/12/2012,10176615
Economy Development & Culture,Car Parks General,CPK01,Postage & Distribution,0370,49.40,Royal Mail,101554,20/12/2012,10176615
Resources & Corporate Governance,Central Business Support Services,CSS15,Postage & Distribution,0370,455.23,Royal Mail,101554,20/12/2012,10176615
Resources & Corporate Governance ,Council Tax and NNDR Collection,CTX01,Postage & Distribution,0370,225.82,Royal Mail,101554,20/12/2012,10176615
Economy Development & Culture,Decrim. of Car Parking on street parking,DPE02,Postage & Distribution,0370,197.62,Royal Mail,101554,20/12/2012,10176615
Resources & Corporate Governance ,Electoral Registration,ERG00,Postage & Distribution,0370,129.97,Royal Mail,101554,20/12/2012,10176615
Sustainable Inclusive Communities,Housing Benefit Administration,HBA00,Postage & Distribution,0370,252.49,Royal Mail,101554,20/12/2012,10176615
Housing Revenue Account ,Supervision and Management General,MAN00,Postage & Distribution,0370,51.77,Royal Mail,101554,20/12/2012,10176615
Economy Development & Culture,Planning General/Income,PLN00,Postage & Distribution,0370,217.39,Royal Mail,101554,20/12/2012,10176615
Economy Development & Culture,Visitor Centre,VSC00,Postage & Distribution,0370,2.39,Royal Mail,101554,20/12/2012,10176615
Resources & Corporate Governance ,General Administration,WAD00,Postage & Distribution,0370,46.96,Royal Mail,101554,20/12/2012,10176615
Economy Development & Culture,Art Gallery and Museum,AGM00,Postage & Distribution,0370,4.64,Royal Mail,101554,20/12/2012,10177244
Economy Development & Culture,Building Control Services,BCS00,Postage & Distribution,0370,2.57,Royal Mail,101554,20/12/2012,10177244
Economy Development & Culture,Building Regulation Fee Earning Account,BCS99,Postage & Distribution,0370,3.40,Royal Mail,101554,20/12/2012,10177244
Economy Development & Culture,Car Parks General,CPK01,Postage & Distribution,0370,33.94,Royal Mail,101554,20/12/2012,10177244
Resources & Corporate Governance,Central Business Support Services,CSS15,Postage & Distribution,0370,465.13,Royal Mail,101554,20/12/2012,10177244
Resources & Corporate Governance ,Council Tax and NNDR Collection,CTX01,Postage & Distribution,0370,153.13,Royal Mail,101554,20/12/2012,10177244
Economy Development & Culture,Decrim. of Car Parking on street parking,DPE02,Postage & Distribution,0370,135.74,Royal Mail,101554,20/12/2012,10177244
Resources & Corporate Governance ,Electoral Registration,ERG00,Postage & Distribution,0370,81.96,Royal Mail,101554,20/12/2012,10177244
Sustainable Inclusive Communities,Housing Benefit Administration,HBA00,Postage & Distribution,0370,301.68,Royal Mail,101554,20/12/2012,10177244
Housing Revenue Account ,Supervision and Management General,MAN00,Postage & Distribution,0370,837.44,Royal Mail,101554,20/12/2012,10177244
Economy Development & Culture,Planning General/Income,PLN00,Postage & Distribution,0370,288.04,Royal Mail,101554,20/12/2012,10177244
Economy Development & Culture,Visitor Centre,VSC00,Postage & Distribution,0370,1.32,Royal Mail,101554,20/12/2012,10177244
Resources & Corporate Governance ,General Administration,WAD00,Postage & Distribution,0370,30.24,Royal Mail,101554,20/12/2012,10177244
Resources & Corporate Governance,Handy man,WHM00,External Contractor & Operator,0742,428.00,Rugby Plastering Services,101602,06/12/2012,10176918
Housing Revenue Account ,Unplanned Maintenance and Repair,UMR00,R&M External Contractors,0100,3868.96,Rugby Plastering Services,101602,13/12/2012,10177704
Resources & Corporate Governance,Corporate Property Central Utilities,CPA02,Water Services,0143,2719.32,Severn Trent Water Ltd,101610,13/12/2012,10177053
Capital Program ,Disabled Facilities Grant,REN01,Capital Grants,5014,1830.00,Stannah Stairlifts Ltd,101623,06/12/2012,10177041
Housing Revenue Account ,Unplanned Maintenance and Repair,UMR00,R&M External Contractors,0100,476.00,Steve Diston Contract Flooring,101668,20/12/2012,10177837
Resources & Corporate Governance ,Domestic Waste Collection,WWC00,Vehicle Running Costs,0201,1231.73,HI-Q Motorway,101736,13/12/2012,10177197
Resources & Corporate Governance ,Domestic Waste Collection,WWC00,Vehicle Running Costs,0201,1226.04,HI-Q Motorway,101736,20/12/2012,10177993
Resources & Corporate Governance ,Trade Waste Collection,WWC01,Vehicle Running Costs,0201,52.00,HI-Q Motorway,101736,20/12/2012,10177993
Sustainable Environment ,Caldecott Park/Town Centre Area,PKS00,Materials,0303,1485.00,Tudor Environmental,101743,13/12/2012,10177248
Resources & Corporate Governance ,TREE WORKS,WGM01,Materials,0303,167.07,Tudor Environmental,101743,20/12/2012,10177691
Resources & Corporate Governance ,TREE WORKS,WGM01,Tools,0304,323.86,Tudor Environmental,101743,20/12/2012,10177691
Sustainable Environment ,Caldecott Park/Town Centre Area,PKS00,Materials,0303,5195.00,Tudor Environmental,101743,20/12/2012,10177692
Capital Program ,Viaduct Cycleways,CYC02,Capital Contract Payments,5000,500.00,Warwickshire County Council,101840,20/12/2012,10177769
Economy Development & Culture,Grants and Subscriptions,LGS00,Grants To Voluntary Organisations,0720,1000.00,Wolvey Parish Council,101853,06/12/2012,10177149
Sustainable Inclusive Communities,Housing Strategy & Enabling,HSE00,Payments to Other Local Authorities,0710,33000.00,Warwickshire County Council,101893,13/12/2012,10176530
Economy Development & Culture,Art Gallery and Museum,AGM00,Contract Cleaning,0170,2870.49,Warwickshire County Council,101893,06/12/2012,10177151
Housing Revenue Account ,Unplanned Maintenance and Repair,UMR00,R&M External Contractors,0100,2335.16,Warwickshire County Council,101893,20/12/2012,10177789
Sustainable Environment ,Crime and Disorder Activities,CAD00,Payments to Other Local Authorities,0710,1700.00,Warwickshire County Council,101893,20/12/2012,10177835
Economy Development & Culture,Art Gallery and Museum,AGM00,Payments to Other Local Authorities,0710,1000.00,Warwickshire County Council,101893,20/12/2012,10178043
Resources & Corporate Governance,Handy man,WHM00,External Contractor & Operator,0742,1560.00,Darren Wilson Roofing Ltd,101911,13/12/2012,10176513
Capital Program ,Private Sector Renovation Loans,REN00,Capital Contract Payments,5000,2985.60,"Progress Windows, Roofline & Conservatories Ltd",101917,20/12/2012,10177735
Capital Program ,Electric to Gas Conversions,HIM04,Capital Contract Payments,5000,9613.14,Adroit Services Ltd,101939,13/12/2012,10177366
Housing Revenue Account ,Unplanned Maintenance and Repair,UMR00,R&M External Contractors,0100,1174.56,Adroit Services Ltd,101939,06/12/2012,10177387
Capital Program ,Bathroom Modifications,HIS01,Capital Contract Payments,5000,712.56,Adroit Services Ltd,101939,06/12/2012,10177387
Housing Revenue Account ,Unplanned Maintenance and Repair,UMR00,R&M External Contractors,0100,782.67,Adroit Services Ltd,101939,13/12/2012,10177518
Housing Revenue Account ,Unplanned Maintenance and Repair,UMR00,R&M External Contractors,0100,1080.82,Adroit Services Ltd,101939,13/12/2012,10177713
Capital Program ,Electric to Gas Conversions,HIM04,Capital Contract Payments,5000,10049.52,Adroit Services Ltd,101939,20/12/2012,10177744
Capital Program ,Electric to Gas Conversions,HIM04,Capital Contract Payments,5000,5024.76,Adroit Services Ltd,101939,20/12/2012,10177859
Resources & Corporate Governance ,"Communications, Consultation and Information Team",BTR20,Publicity & Marketing,0377,4392.95,Johnston Publishing Ltd,107468,20/12/2012,10177886
Resources & Corporate Governance ,Street Cleansing,WSC00,Vehicle Repair and Maintenance,0200,605.42,Scarab Sweepers Ltd,108252,13/12/2012,10177062
Resources & Corporate Governance ,Street Cleansing,WSC00,Vehicle Repair and Maintenance,0200,1820.55,Scarab Sweepers Ltd,108252,13/12/2012,10177066
Economy Development & Culture,Planning Control,PLN01,External Legal Costs,0741,962.50,SATNAM SINGH CHOONGH,109271,06/12/2012,10177396
Economy Development & Culture,Visitor Centre,VSC00,Purchases for Resale,0305,445.20,Countryside Art Ltd,109328,20/12/2012,10177836
Resources & Corporate Governance ,Garage Internal,WVR01,Materials,0303,34005.00,Watson Petroleum,110361,13/12/2012,10177418
Resources & Corporate Governance,Handy man,WHM00,Materials,0303,536.50,Linnell Bros. Ltd,110449,13/12/2012,10177551
Resources & Corporate Governance,Corporate Property R&M,CPA01,R&M External Contractors,0100,539.21,Croxford Electrical,110451,06/12/2012,10176728
Resources & Corporate Governance,Corporate Property R&M,CPA01,R&M External Contractors,0100,694.07,Croxford Electrical,110451,20/12/2012,10177165
Resources & Corporate Governance,Central Business Support Services,CSS15,Photocopying,0354,500.41,Ricoh UK Limited,111532,06/12/2012,10177054
Resources & Corporate Governance ,Maintenance of Customer Services Systems,CIS21,Software Maintenance,0374,68630.63,Civica UK Ltd,112724,14/12/2012,10176607
Resources & Corporate Governance ,Maintenance of Customer Services Systems,CIS21,Software Maintenance,0374,2701.82,Civica UK Ltd,112724,06/12/2012,10176641
Resources & Corporate Governance ,Maintenance of Customer Services Systems,CIS21,Software Maintenance,0374,1457.24,Civica UK Ltd,112724,06/12/2012,10176643
Sustainable Environment,Regulatory Services,REG00,Health and Safety Costs,0449,945.00,Civica UK Ltd,112724,06/12/2012,10177422
Resources & Corporate Governance ,Domestic Waste Collection,WWC00,Agency Staff,0003,508.37,Extra Personnel Limited,112996,06/12/2012,10177185
Resources & Corporate Governance,Corporate Property R&M,CPA01,R&M External Contractors,0100,1728.92,Relko Restoration & Masonry Ltd,113192,20/12/2012,10177628
Sustainable Inclusive Communities,Housing Benefit Administration,HBA00,Consultation,0378,7793.00,Stratford on Avon District Council,113281,06/12/2012,10177071
Economy Development & Culture,Ken Marriott Leisure Centre,KML00,External Contractor & Operator,0742,25181.06,DC Leisure Management Ltd (Otium),114443,06/12/2012,10177164
Housing Revenue Account ,Unplanned Maintenance and Repair,UMR00,R&M External Contractors,0100,1341.40,Temple Lifts Ltd,114738,13/12/2012,10177365
Sustainable Environment ,Cemeteries General,CEM00,Purchases for Resale,0305,668.00,Streetmaster (South Wales) Ltd,114898,20/12/2012,10177956
Sustainable Environment ,Cemeteries General,CEM00,External Contractor & Operator,0742,2186.00,Streetmaster (South Wales) Ltd,114898,20/12/2012,10177957
Sustainable Inclusive Communities,Housing Options Team,HOT00,Rents,0140,455.00,Diamond House Hotel,115070,20/12/2012,10177562
Sustainable Inclusive Communities,Housing Options Team,HOT00,Rents,0140,455.00,Diamond House Hotel,115070,20/12/2012,10177563
Resources & Corporate Governance ,Grounds Maintenance,WGM00,Materials,0303,600.00,Wall Bros,117489,13/12/2012,10177420
Sustainable Environment ,Caldecott Park/Town Centre Area,PKS00,External Contractor & Operator,0742,510.00,Lushglen,117749,13/12/2012,10177514
Sustainable Environment ,Street Scene,ENV30,Development Activities,0450,26948.00,Hi-Lite Electrical Ltd,118814,13/12/2012,10177423
Resources & Corporate Governance,Corporate Property Central Utilities,CPA02,Electricity,0130,9843.33,Southern Electric,118976,20/12/2012,10177841
Resources & Corporate Governance,Corporate Property Central Utilities,CPA02,Electricity,0130,-1079.18,Southern Electric,118976,20/12/2012,10177856
Resources & Corporate Governance ,WSU Depot,WDP00,Electricity,0130,7218.48,Southern Electric,118976,20/12/2012,10177856
Resources & Corporate Governance ,Toilet Cleaning,WBC01,Agency Staff,0003,522.90,G-Staff Ltd,120173,06/12/2012,10177123
Resources & Corporate Governance,Handy man,WHM00,Agency Staff,0003,49.91,G-Staff Ltd,120173,06/12/2012,10177123
Resources & Corporate Governance ,Street Cleansing,WSC00,Agency Staff,0003,159.52,G-Staff Ltd,120173,06/12/2012,10177123
Resources & Corporate Governance ,Domestic Waste Collection,WWC00,Agency Staff,0003,2117.14,G-Staff Ltd,120173,06/12/2012,10177123
Resources & Corporate Governance ,Trade Waste Collection,WWC01,Agency Staff,0003,282.17,G-Staff Ltd,120173,06/12/2012,10177123
Resources & Corporate Governance,Handy man,WHM00,Agency Staff,0003,160.81,G-Staff Ltd,120173,13/12/2012,10177532
Resources & Corporate Governance ,Street Cleansing,WSC00,Agency Staff,0003,368.89,G-Staff Ltd,120173,13/12/2012,10177532
Resources & Corporate Governance ,Domestic Waste Collection,WWC00,Agency Staff,0003,1670.16,G-Staff Ltd,120173,13/12/2012,10177532
Resources & Corporate Governance ,Trade Waste Collection,WWC01,Agency Staff,0003,495.50,G-Staff Ltd,120173,13/12/2012,10177532
Resources & Corporate Governance,Central Business Support Services,CSS15,Photocopying,0354,1769.00,Northgate Information Solutions UK Ltd,121606,20/12/2012,10177891
Resources & Corporate Governance,Central Business Support Services,CSS15,Postage & Distribution,0370,952.50,DX NETWORK SERVICES LTD,121717,13/12/2012,10177466
Resources & Corporate Governance,Central Business Support Services,CSS15,Postage & Distribution,0370,1482.45,DX NETWORK SERVICES LTD,121717,13/12/2012,10177467
Housing Revenue Account ,Maintenance of Open Spaces,MOS00,External Contractor & Operator,0742,984.90,Brinklow Quarry,122921,13/12/2012,10177245
Resources & Corporate Governance ,Highways,WHG00,External Contractor & Operator,0742,27.88,Brinklow Quarry,122921,13/12/2012,10177245
Resources & Corporate Governance ,Central Telephone Service,TEL00,Telephone Expenses,0371,1158.62,Cable & Wireless,123224,13/12/2012,10177453
Economy Development & Culture,Grants and Subscriptions,LGS00,Grants To Voluntary Organisations,0720,1000.00,Kate Morris,125540,13/12/2012,10177263
Resources & Corporate Governance,Corporate Property R&M,CPA01,R&M External Contractors,0100,5000.00,Smith Of Derby Ltd,128660,20/12/2012,10177728
Resources & Corporate Governance,Handy man,WHM00,Contract Hire,0220,65.00,M P Hudson & Son,129334,06/12/2012,10177176
Resources & Corporate Governance,Handy man,WHM00,External Contractor & Operator,0742,442.50,M P Hudson & Son,129334,06/12/2012,10177176
Resources & Corporate Governance,Handy man,WHM00,External Contractor & Operator,0742,575.22,M P Hudson & Son,129334,13/12/2012,10177657
Resources & Corporate Governance,Handy man,WHM00,External Contractor & Operator,0742,555.00,M P Hudson & Son,129334,20/12/2012,10178020
Resources & Corporate Governance ,Domestic Waste Collection,WWC00,Materials,0303,1124.00,Get it Sorted Limited,129426,13/12/2012,10176989
Capital Program ,Electric to Gas Conversions,HIM04,Capital Contract Payments,5000,858.00,National Grid Gas plc,130213,06/12/2012,10177163
Capital Program ,Heating Upgrades,HIM01,Capital Contract Payments,5000,858.00,National Grid Gas plc,130213,06/12/2012,10177376
Capital Program ,Moving in Grants,MIG00,Capital Contract Payments,5000,5000.00,Rugby First Limited - Town Centre,130214,20/12/2012,10177823
Sustainable Environment ,Caldecott Park/Town Centre Area,PKS00,External Contractor & Operator,0742,844.00,I D Welding & Fabrications,131407,13/12/2012,10177531
Economy Development & Culture,Decrim. of Car Parking on street parking,DPE02,Cash Collection,0744,728.84,Jade Security Services Ltd,131711,13/12/2012,10177521
Economy Development & Culture,Car Parks General,CPK01,Cash Collection,0744,1052.16,Jade Security Services Ltd,131711,13/12/2012,10177522
Economy Development & Culture,Town Centre CCTV and Management,TVM00,Other Agencies,0734,20115.98,Rugby First Ltd - BID,133176,13/12/2012,10177602
Economy Development & Culture,Town Centre CCTV and Management,TVM00,Other Agencies,0734,20115.98,Rugby First Ltd - BID,133176,13/12/2012,10177603
Resources & Corporate Governance ,Highways,WHG00,Materials,0303,1235.44,Breedon Aggregates England Limited,133309,06/12/2012,10176990
Resources & Corporate Governance ,Highways,WHG00,Materials,0303,569.22,Breedon Aggregates England Limited,133309,20/12/2012,10177969
Resources & Corporate Governance,Corporate Property R&M,CPA01,R&M External Contractors,0100,682.00,Sunfish Services Ltd,133886,06/12/2012,10177004
Housing Revenue Account ,Unplanned Maintenance and Repair,UMR00,R&M External Contractors,0100,1578.85,Delec Ltd,133887,06/12/2012,10177389
Housing Revenue Account ,Control Centre (HRA),CCE00,Maintenance of Equipment,0301,11.05,Delec Ltd,133887,06/12/2012,10177389
Housing Revenue Account ,Unplanned Maintenance and Repair,UMR00,R&M External Contractors,0100,1897.11,Delec Ltd,133887,13/12/2012,10177594
Housing Revenue Account ,Unplanned Maintenance and Repair,UMR00,R&M External Contractors,0100,854.02,Delec Ltd,133887,13/12/2012,10177714
Housing Revenue Account ,Unplanned Maintenance and Repair,UMR00,R&M External Contractors,0100,2558.24,Delec Ltd,133887,20/12/2012,10178038
Resources & Corporate Governance ,Human Resources Centralised Services,RES31,Eye Tests & Glasses Contributions,0015,1034.05,Specsavers Optical Superstores,134897,13/12/2012,10177694
Capital Program ,Disabled Adaptations,HCR01,Capital Contract Payments,5000,562.59,North Yorkshire Mobility and Safety,135222,20/12/2012,10177944
Housing Revenue Account ,Frederick Press Way AP,AGP06,Electricity,0130,383.49,Southern Electric,135653,20/12/2012,10177857
Housing Revenue Account ,Mercer Court AP,AGP09,Electricity,0130,-3.97,Southern Electric,135653,20/12/2012,10177857
Housing Revenue Account ,Pettiver Crescent I AP,AGP10,Electricity,0130,84.41,Southern Electric,135653,20/12/2012,10177857
Housing Revenue Account ,Robotham Close AP,AGP11,Electricity,0130,268.13,Southern Electric,135653,20/12/2012,10177857
Housing Revenue Account ,Stacey Court AP,AGP12,Electricity,0130,-659.41,Southern Electric,135653,20/12/2012,10177857
Housing Revenue Account ,Stretton Court AP,AGP13,Electricity,0130,289.66,Southern Electric,135653,20/12/2012,10177857
Housing Revenue Account ,Brookside Pailton AP,AGP40,Electricity,0130,147.39,Southern Electric,135653,20/12/2012,10177857
Housing Revenue Account ,Great Balance Brinklow AP,AGP48,Electricity,0130,78.85,Southern Electric,135653,20/12/2012,10177857
Housing Revenue Account ,Meadow Way/Primrose Court AP,AGP58,Electricity,0130,44.99,Southern Electric,135653,20/12/2012,10177857
Housing Revenue Account ,Norman Road AP,AGP60,Electricity,0130,21.05,Southern Electric,135653,20/12/2012,10177857
Housing Revenue Account ,Patterdale AP,AGP61,Electricity,0130,111.06,Southern Electric,135653,20/12/2012,10177857
Housing Revenue Account ,Victoria Street/Lawford Road AP,AGP68,Electricity,0130,29.20,Southern Electric,135653,20/12/2012,10177857
Housing Revenue Account ,Parkfield Road/Lea Crescent AP,AGP71,Electricity,0130,223.81,Southern Electric,135653,20/12/2012,10177857
Housing Revenue Account ,Pennington Street/Round Street AP,AGP72,Electricity,0130,353.27,Southern Electric,135653,20/12/2012,10177857
Housing Revenue Account ,Supervision and Management General,MAN00,Electricity,0130,124.20,Southern Electric,135653,20/12/2012,10177857
Resources & Corporate Governance ,Street Cleansing,WSC00,Materials,0303,588.00,Demon International Ltd,138463,13/12/2012,10177186
Capital Program ,Pettiver Crescent,PCH00,Capital Contract Payments,5000,5195.00,Listers Geotechnical Consultants Ltd,138527,20/12/2012,10177607
Resources & Corporate Governance ,Town Hall,OFF00,Contract Cleaning,0170,4280.55,Regent Office Care Ltd T/A Regent Cleaning,138934,06/12/2012,10176149
Resources & Corporate Governance ,WSU Depot,WDP00,Contract Cleaning,0170,219.00,Regent Office Care Ltd T/A Regent Cleaning,138934,06/12/2012,10176149
Resources & Corporate Governance ,Grounds Maintenance,WGM00,Contract Cleaning,0170,147.50,Regent Office Care Ltd T/A Regent Cleaning,138934,06/12/2012,10176149
Housing Revenue Account ,Unplanned Maintenance and Repair,UMR00,R&M External Contractors,0100,2202.15,Regent Office Care Ltd T/A Regent Cleaning,138934,13/12/2012,10177595
Housing Revenue Account ,Sheltered Housing,AGP00,Contract Cleaning,0170,14297.47,Regent Office Care Ltd T/A Regent Cleaning,138934,20/12/2012,10177842
Sustainable Inclusive Communities,Housing Options Team,HOT00,Contract Cleaning,0170,134.76,Regent Office Care Ltd T/A Regent Cleaning,138934,20/12/2012,10177842
Housing Revenue Account ,Estate Management,MAN22,Contract Cleaning,0170,3078.90,Regent Office Care Ltd T/A Regent Cleaning,138934,20/12/2012,10177842
Housing Revenue Account ,Multi-Storey Flats,MSF00,Contract Cleaning,0170,1731.90,Regent Office Care Ltd T/A Regent Cleaning,138934,20/12/2012,10177842
Resources & Corporate Governance ,Town Hall,OFF00,Contract Cleaning,0170,4280.55,Regent Office Care Ltd T/A Regent Cleaning,138934,20/12/2012,10177843
Resources & Corporate Governance ,WSU Depot,WDP00,Contract Cleaning,0170,219.00,Regent Office Care Ltd T/A Regent Cleaning,138934,20/12/2012,10177843
Resources & Corporate Governance ,Grounds Maintenance,WGM00,Contract Cleaning,0170,147.50,Regent Office Care Ltd T/A Regent Cleaning,138934,20/12/2012,10177843
Housing Revenue Account ,Asbestos Surveys,UMR05,R&M External Contractors,0100,260.00,Rider Levett Bucknall UK Ltd,139918,06/12/2012,10177159
Capital Program ,Heating Upgrades,HIM01,Capital Contract Payments,5000,260.00,Rider Levett Bucknall UK Ltd,139918,06/12/2012,10177159
Capital Program ,Electric to Gas Conversions,HIM04,Capital Contract Payments,5000,130.00,Rider Levett Bucknall UK Ltd,139918,06/12/2012,10177159
Capital Program ,Bathroom Modifications,HIS01,Capital Contract Payments,5000,260.00,Rider Levett Bucknall UK Ltd,139918,06/12/2012,10177159
Housing Revenue Account ,Asbestos Surveys,UMR05,R&M External Contractors,0100,1300.00,Rider Levett Bucknall UK Ltd,139918,20/12/2012,10177854
Capital Program ,Heating Upgrades,HIM01,Capital Contract Payments,5000,130.00,Rider Levett Bucknall UK Ltd,139918,20/12/2012,10177854
Resources & Corporate Governance ,Domestic Waste Collection,WWC00,Vehicle Repair and Maintenance,0200,9723.36,Midlands Truck & Van Ltd,140322,13/12/2012,10177501
Resources & Corporate Governance ,Maintenance of Customer Services Systems,CIS21,Software Maintenance,0374,4276.44,Midland Software Ltd,140463,06/12/2012,10177162
Housing Revenue Account ,Property Maintenance,MAN23,Consultancy Costs,0740,4995.00,Ascertiva Group Ltd,142076,13/12/2012,10177548
Capital Program ,Bathroom Modifications,HIS01,Capital Contract Payments,5000,36465.00,Ian Williams Ltd,142238,13/12/2012,10177098
Economy Development & Culture,Grants and Subscriptions,LGS00,Grants To Voluntary Organisations,0720,791.65,Coventry & Warwickshire YMCA,142364,06/12/2012,10177150
Economy Development & Culture,Car Parks General,CPK01,Other Agencies,0734,235.56,PATROL,144963,13/12/2012,10177655
Economy Development & Culture,Decrim. of Car Parking on street parking,DPE02,Other Agencies,0734,942.24,PATROL,144963,13/12/2012,10177655
Housing Revenue Account ,Control Centre CCTV,CCE01,External Contractor & Operator,0742,15928.66,Securitas Security Personnel Ltd,145079,06/12/2012,10177055
Housing Revenue Account ,Control Centre CCTV,CCE01,External Contractor & Operator,0742,15928.66,Securitas Security Personnel Ltd,145079,20/12/2012,10178048
Sustainable Inclusive Communities,Housing Options Team,HOT00,Agency Staff,0003,607.17,James Andrews Recruitment Solutions Ltd,145100,13/12/2012,10177696
Housing Revenue Account ,Property Maintenance,MAN23,Agency Staff,0003,1189.00,James Andrews Recruitment Solutions Ltd,145100,20/12/2012,10178000
Housing Revenue Account ,Property Maintenance,MAN23,Agency Staff,0003,1203.50,James Andrews Recruitment Solutions Ltd,145100,20/12/2012,10178001
Housing Revenue Account ,Property Maintenance,MAN23,Agency Staff,0003,1218.00,James Andrews Recruitment Solutions Ltd,145100,20/12/2012,10178002
Housing Revenue Account ,Property Maintenance,MAN23,Agency Staff,0003,1189.00,James Andrews Recruitment Solutions Ltd,145100,20/12/2012,10178060
Capital Program ,Queen's Diamond Jubilee Leisure Centre Project,LEI03,Capital Contract Payments,5000,722.50,LAVAT Consulting Limited,145204,13/12/2012,10177380
Resources & Corporate Governance ,General Financial Services,GFS00,External Contractor & Operator,0742,850.00,LAVAT Consulting Limited,145204,06/12/2012,10177381
Capital Program ,Open Spaces Refurbishment,LEI08,Capital Contract Payments,5000,2903.10,Logic Street & Park Scene,145331,06/12/2012,10177187
Resources & Corporate Governance ,Street Cleansing,WSC00,Agency Staff,0003,740.90,Blue Arrow Limited,145492,06/12/2012,10177127
Resources & Corporate Governance ,Domestic Waste Collection,WWC00,Agency Staff,0003,737.62,Blue Arrow Limited,145492,06/12/2012,10177127
Resources & Corporate Governance ,Street Cleansing,WSC00,Agency Staff,0003,1222.05,Blue Arrow Limited,145492,13/12/2012,10177606
Resources & Corporate Governance ,Street Cleansing,WSC00,Agency Staff,0003,670.00,Blue Arrow Limited,145492,20/12/2012,10177972
Resources & Corporate Governance ,Domestic Waste Collection,WWC00,Agency Staff,0003,137.41,Blue Arrow Limited,145492,20/12/2012,10177972
Sustainable Environment ,Crime and Disorder Activities,CAD00,Other Miscellaneous Expenses,0444,3000.00,Positive About Young People,146375,20/12/2012,10177989
Capital Program ,Crime Reduction Capital Schemes,HCE01,Capital Contract Payments,5000,3975.17,Easibathe Limited,146401,11/12/2012,10177665
Capital Program ,Disabled Adaptations,HCR01,Capital Contract Payments,5000,895.00,Easibathe Limited,146401,11/12/2012,10177665
Capital Program ,Disabled Adaptations,HCR01,Capital Contract Payments,5000,4870.17,Easibathe Limited,146401,20/12/2012,10177783
Resources & Corporate Governance,Corporate Property R&M,CPA01,R&M External Contractors,0100,3192.30,Stanair Industrial Services Ltd,146499,06/12/2012,10176739
Resources & Corporate Governance ,Street Cleansing,WSC00,Vehicle Repair and Maintenance,0200,720.00,RT Sweeper Services Ltd,146604,20/12/2012,10177970
Resources & Corporate Governance ,"Communications, Consultation and Information Team",BTR20,Publicity & Marketing,0377,998.00,The Printing House Ltd,146767,20/12/2012,10177774
Resources & Corporate Governance ,Retired Employees,RET00,Additional Pension Payments,0014,11636.85,WCC Pension Fund,146914,20/12/2012,10177822
Economy Development & Culture,Art Gallery and Museum,AGM00,Postage & Distribution,0370,171.20,TNT Post Midlands Ltd,146983,20/12/2012,10175441
Economy Development & Culture,Building Control Services,BCS00,Postage & Distribution,0370,2.38,TNT Post Midlands Ltd,146983,20/12/2012,10175441
Economy Development & Culture,Building Regulation Fee Earning Account,BCS99,Postage & Distribution,0370,3.16,TNT Post Midlands Ltd,146983,20/12/2012,10175441
Resources & Corporate Governance,Central Business Support Services,CSS15,Postage & Distribution,0370,69.65,TNT Post Midlands Ltd,146983,20/12/2012,10175441
Resources & Corporate Governance ,Council Tax and NNDR Collection,CTX01,Postage & Distribution,0370,154.95,TNT Post Midlands Ltd,146983,20/12/2012,10175441
Resources & Corporate Governance ,Electoral Registration,ERG00,Postage & Distribution,0370,379.10,TNT Post Midlands Ltd,146983,20/12/2012,10175441
Sustainable Inclusive Communities,Housing Benefit Administration,HBA00,Postage & Distribution,0370,194.17,TNT Post Midlands Ltd,146983,20/12/2012,10175441
Housing Revenue Account ,Supervision and Management General,MAN00,Postage & Distribution,0370,53.52,TNT Post Midlands Ltd,146983,20/12/2012,10175441
Resources & Corporate Governance ,General Administration,WAD00,Postage & Distribution,0370,0.28,TNT Post Midlands Ltd,146983,20/12/2012,10175441
Economy Development & Culture,Art Gallery and Museum,AGM00,Postage & Distribution,0370,0.57,TNT Post Midlands Ltd,146983,20/12/2012,10175712
Economy Development & Culture,Building Control Services,BCS00,Postage & Distribution,0370,3.03,TNT Post Midlands Ltd,146983,20/12/2012,10175712
Economy Development & Culture,Building Regulation Fee Earning Account,BCS99,Postage & Distribution,0370,4.02,TNT Post Midlands Ltd,146983,20/12/2012,10175712
Resources & Corporate Governance,Central Business Support Services,CSS15,Postage & Distribution,0370,35.54,TNT Post Midlands Ltd,146983,20/12/2012,10175712
Resources & Corporate Governance ,Council Tax and NNDR Collection,CTX01,Postage & Distribution,0370,166.54,TNT Post Midlands Ltd,146983,20/12/2012,10175712
Resources & Corporate Governance ,Electoral Registration,ERG00,Postage & Distribution,0370,189.64,TNT Post Midlands Ltd,146983,20/12/2012,10175712
Sustainable Inclusive Communities,Housing Benefit Administration,HBA00,Postage & Distribution,0370,148.29,TNT Post Midlands Ltd,146983,20/12/2012,10175712
Housing Revenue Account ,Supervision and Management General,MAN00,Postage & Distribution,0370,144.30,TNT Post Midlands Ltd,146983,20/12/2012,10175712
Resources & Corporate Governance ,General Administration,WAD00,Postage & Distribution,0370,1.43,TNT Post Midlands Ltd,146983,20/12/2012,10175712
Economy Development & Culture,Art Gallery and Museum,AGM00,Postage & Distribution,0370,29.85,TNT Post Midlands Ltd,146983,06/12/2012,10176808
Economy Development & Culture,Building Control Services,BCS00,Postage & Distribution,0370,4.61,TNT Post Midlands Ltd,146983,06/12/2012,10176808
Economy Development & Culture,Building Regulation Fee Earning Account,BCS99,Postage & Distribution,0370,6.11,TNT Post Midlands Ltd,146983,06/12/2012,10176808
Resources & Corporate Governance,Central Business Support Services,CSS15,Postage & Distribution,0370,31.33,TNT Post Midlands Ltd,146983,06/12/2012,10176808
Resources & Corporate Governance ,Council Tax and NNDR Collection,CTX01,Postage & Distribution,0370,303.80,TNT Post Midlands Ltd,146983,06/12/2012,10176808
Resources & Corporate Governance ,Electoral Registration,ERG00,Postage & Distribution,0370,19.50,TNT Post Midlands Ltd,146983,06/12/2012,10176808
Sustainable Inclusive Communities,Housing Benefit Administration,HBA00,Postage & Distribution,0370,153.67,TNT Post Midlands Ltd,146983,06/12/2012,10176808
Housing Revenue Account ,Supervision and Management General,MAN00,Postage & Distribution,0370,32.40,TNT Post Midlands Ltd,146983,06/12/2012,10176808
Economy Development & Culture,Visitor Centre,VSC00,Postage & Distribution,0370,62.95,TNT Post Midlands Ltd,146983,06/12/2012,10176808
Resources & Corporate Governance ,General Administration,WAD00,Postage & Distribution,0370,2.07,TNT Post Midlands Ltd,146983,06/12/2012,10176808
Economy Development & Culture,Art Gallery and Museum,AGM00,Postage & Distribution,0370,7.42,TNT Post Midlands Ltd,146983,13/12/2012,10177094
Economy Development & Culture,Building Control Services,BCS00,Postage & Distribution,0370,4.49,TNT Post Midlands Ltd,146983,13/12/2012,10177094
Economy Development & Culture,Building Regulation Fee Earning Account,BCS99,Postage & Distribution,0370,5.96,TNT Post Midlands Ltd,146983,13/12/2012,10177094
Resources & Corporate Governance,Central Business Support Services,CSS15,Postage & Distribution,0370,42.15,TNT Post Midlands Ltd,146983,13/12/2012,10177094
Resources & Corporate Governance ,Council Tax and NNDR Collection,CTX01,Postage & Distribution,0370,203.96,TNT Post Midlands Ltd,146983,13/12/2012,10177094
Resources & Corporate Governance ,Electoral Registration,ERG00,Postage & Distribution,0370,2.57,TNT Post Midlands Ltd,146983,13/12/2012,10177094
Sustainable Inclusive Communities,Housing Benefit Administration,HBA00,Postage & Distribution,0370,132.61,TNT Post Midlands Ltd,146983,13/12/2012,10177094
Housing Revenue Account ,Supervision and Management General,MAN00,Postage & Distribution,0370,25.69,TNT Post Midlands Ltd,146983,13/12/2012,10177094
Economy Development & Culture,Planning General/Income,PLN00,Postage & Distribution,0370,4478.80,TNT Post Midlands Ltd,146983,13/12/2012,10177094
Resources & Corporate Governance ,General Administration,WAD00,Postage & Distribution,0370,2.75,TNT Post Midlands Ltd,146983,13/12/2012,10177094
Economy Development & Culture,Building Control Services,BCS00,Postage & Distribution,0370,5.57,TNT Post Midlands Ltd,146983,20/12/2012,10177538
Economy Development & Culture,Building Regulation Fee Earning Account,BCS99,Postage & Distribution,0370,7.39,TNT Post Midlands Ltd,146983,20/12/2012,10177538
Resources & Corporate Governance,Central Business Support Services,CSS15,Postage & Distribution,0370,79.98,TNT Post Midlands Ltd,146983,20/12/2012,10177538
Resources & Corporate Governance ,Council Tax and NNDR Collection,CTX01,Postage & Distribution,0370,229.68,TNT Post Midlands Ltd,146983,20/12/2012,10177538
Resources & Corporate Governance ,Electoral Registration,ERG00,Postage & Distribution,0370,33.97,TNT Post Midlands Ltd,146983,20/12/2012,10177538
Sustainable Inclusive Communities,Housing Benefit Administration,HBA00,Postage & Distribution,0370,133.69,TNT Post Midlands Ltd,146983,20/12/2012,10177538
Housing Revenue Account ,Supervision and Management General,MAN00,Postage & Distribution,0370,37.08,TNT Post Midlands Ltd,146983,20/12/2012,10177538
Economy Development & Culture,Visitor Centre,VSC00,Postage & Distribution,0370,2.49,TNT Post Midlands Ltd,146983,20/12/2012,10177538
Resources & Corporate Governance ,General Administration,WAD00,Postage & Distribution,0370,1.25,TNT Post Midlands Ltd,146983,20/12/2012,10177538
Economy Development & Culture,Art Gallery and Museum,AGM00,Postage & Distribution,0370,1.69,TNT Post Midlands Ltd,146983,20/12/2012,10177861
Economy Development & Culture,Building Control Services,BCS00,Postage & Distribution,0370,4.11,TNT Post Midlands Ltd,146983,20/12/2012,10177861
Economy Development & Culture,Building Regulation Fee Earning Account,BCS99,Postage & Distribution,0370,5.44,TNT Post Midlands Ltd,146983,20/12/2012,10177861
Resources & Corporate Governance,Central Business Support Services,CSS15,Postage & Distribution,0370,46.98,TNT Post Midlands Ltd,146983,20/12/2012,10177861
Resources & Corporate Governance ,Council Tax and NNDR Collection,CTX01,Postage & Distribution,0370,201.80,TNT Post Midlands Ltd,146983,20/12/2012,10177861
Resources & Corporate Governance ,Electoral Registration,ERG00,Postage & Distribution,0370,57.33,TNT Post Midlands Ltd,146983,20/12/2012,10177861
Sustainable Inclusive Communities,Housing Benefit Administration,HBA00,Postage & Distribution,0370,179.30,TNT Post Midlands Ltd,146983,20/12/2012,10177861
Housing Revenue Account ,Supervision and Management General,MAN00,Postage & Distribution,0370,28.67,TNT Post Midlands Ltd,146983,20/12/2012,10177861
Resources & Corporate Governance ,General Administration,WAD00,Postage & Distribution,0370,9.84,TNT Post Midlands Ltd,146983,20/12/2012,10177861
Housing Revenue Account ,Gas Heating Systems,UMR01,R&M External Contractors,0100,596.79,Bell Decorating Group Ltd,147075,06/12/2012,10177390
Housing Revenue Account ,Repainting Schemes,UMR02,R&M External Contractors,0100,1255.46,Bell Decorating Group Ltd,147075,06/12/2012,10177390
Capital Program ,Kitchen Modifications,HIK10,Capital Contract Payments,5000,50350.00,CLC Contractors Ltd,147076,13/12/2012,10177364
Capital Program ,Kitchen Modifications,HIK10,Capital Contract Payments,5000,10600.00,CLC Contractors Ltd,147076,20/12/2012,10177860
Housing Revenue Account ,Gas Heating Systems,UMR01,R&M External Contractors,0100,20854.19,Integral UK Ltd,147080,06/12/2012,10177030
Housing Revenue Account ,Unplanned Maintenance and Repair,UMR00,R&M External Contractors,0100,897.27,Integral UK Ltd,147080,06/12/2012,10177161
Housing Revenue Account ,Gas Heating Systems,UMR01,R&M External Contractors,0100,838.75,Integral UK Ltd,147080,06/12/2012,10177161
Capital Program ,Queen's Diamond Jubilee Leisure Centre Project,LEI03,Capital Contract Payments,5000,4428.75,B3 Architects,147190,13/12/2012,10176925
Resources & Corporate Governance,Handy man,WHM00,Materials,0303,432.25,ECA Supplies (Coventry) Limited,147276,13/12/2012,10177410
Capital Program ,Heating Upgrades,HIM01,Capital Contract Payments,5000,22057.70,Liberty Gas Group,147368,06/12/2012,10177036
Capital Program ,Electric to Gas Conversions,HIM04,Capital Contract Payments,5000,2340.00,Liberty Gas Group,147368,20/12/2012,10177794
Resources & Corporate Governance,Handy man,WHM00,Materials,0303,820.25,Robert Pochin Limited,147536,06/12/2012,10176988
Resources & Corporate Governance ,Grounds Maintenance,WGM00,Vehicle Repair and Maintenance,0200,493.88,Chris Tallis Farm Machinery Limited,147758,13/12/2012,10177550
Capital Program ,Vehicle Workshop Extension,VWE00,Capital Contract Payments,5000,5148.00,Smiths Concrete Ltd,147799,06/12/2012,10176813
Sustainable Environment,Regulatory Services,REG00,External Contractor & Operator,0742,450.00,CS Labels Ltd,147823,06/12/2012,10177417
Capital Program ,Corporate Property Enhancements,CPE00,R&M External Contractors,0100,390.00,7 PDS,147840,06/12/2012,10176984
Capital Program ,Corporate Property Enhancements,CPE00,Capital Contract Payments,5000,975.00,7 PDS,147840,06/12/2012,10176984
Resources & Corporate Governance ,WSU Depot,WDP00,Messing Facilities,0332,1350.00,Cole Creative Communications Ltd,147857,06/12/2012,10177067
Resources & Corporate Governance ,WSU Depot,WDP00,Messing Facilities,0332,1450.00,Cole Creative Communications Ltd,147857,06/12/2012,10177068
Resources & Corporate Governance ,"Communications, Consultation and Information Team",BTR20,Publicity & Marketing,0377,675.00,Cole Creative Communications Ltd,147857,06/12/2012,10177069
Resources & Corporate Governance ,Domestic Waste Collection,WWC00,Agency Staff,0003,779.81,3b2 Recruitment Ltd T/A Darren Bell Recruitment,147938,06/12/2012,10177196
Economy Development & Culture,Grants and Subscriptions,LGS00,Grants To Voluntary Organisations,0720,500.00,Katherine Green Photography,148005,13/12/2012,10177261
Capital Program ,Queen's Diamond Jubilee Leisure Centre Project,LEI03,Capital Contract Payments,5000,587482.93,Shepherd Construction Ltd,148014,06/12/2012,10177251
Economy Development & Culture,Ken Marriott Leisure Centre,KML00,Other,0763,29108.60,Leonie Cowen & Associates,148057,13/12/2012,10177641
Economy Development & Culture,Art Gallery and Museum,AGM00,Recruitment Expenses,0012,99.75,Team Prevent UK Ltd,148151,06/12/2012,10177032
Sustainable Inclusive Communities,Housing Options Team,HOT00,Recruitment Expenses,0012,19.95,Team Prevent UK Ltd,148151,06/12/2012,10177032
Economy Development & Culture,Positive Futures,LSD04,Recruitment Expenses,0012,77.35,Team Prevent UK Ltd,148151,06/12/2012,10177032
Economy Development & Culture,Visitor Centre,VSC00,Recruitment Expenses,0012,114.80,Team Prevent UK Ltd,148151,06/12/2012,10177032
Resources & Corporate Governance ,General Administration,WAD00,Recruitment Expenses,0012,19.95,Team Prevent UK Ltd,148151,06/12/2012,10177032
Resources & Corporate Governance ,Grounds Maintenance,WGM00,Recruitment Expenses,0012,19.95,Team Prevent UK Ltd,148151,06/12/2012,10177032
Resources & Corporate Governance,Handy man,WHM00,Recruitment Expenses,0012,59.85,Team Prevent UK Ltd,148151,06/12/2012,10177032
Economy Development & Culture,Car Parks General,CPK01,Employee wellbeing/Other employee expenses,0021,69.20,Team Prevent UK Ltd,148151,06/12/2012,10177032
Resources & Corporate Governance,Customer Support Services,CSS00,Employee wellbeing/Other employee expenses,0021,40.00,Team Prevent UK Ltd,148151,06/12/2012,10177032
Resources & Corporate Governance,Business Support Services,CSS10,Employee wellbeing/Other employee expenses,0021,85.00,Team Prevent UK Ltd,148151,06/12/2012,10177032
Economy Development & Culture,Decrim. of Car Parking on street parking,DPE02,Employee wellbeing/Other employee expenses,0021,276.80,Team Prevent UK Ltd,148151,06/12/2012,10177032
Sustainable Environment ,Street Scene,ENV30,Employee wellbeing/Other employee expenses,0021,40.00,Team Prevent UK Ltd,148151,06/12/2012,10177032
Housing Revenue Account ,Property Maintenance,MAN23,Employee wellbeing/Other employee expenses,0021,195.00,Team Prevent UK Ltd,148151,06/12/2012,10177032
Economy Development & Culture,Planning Control,PLN01,Employee wellbeing/Other employee expenses,0021,40.00,Team Prevent UK Ltd,148151,06/12/2012,10177032
Resources & Corporate Governance ,Grounds Maintenance,WGM00,Employee wellbeing/Other employee expenses,0021,80.00,Team Prevent UK Ltd,148151,06/12/2012,10177032
Resources & Corporate Governance,Handy man,WHM00,Employee wellbeing/Other employee expenses,0021,509.05,Team Prevent UK Ltd,148151,06/12/2012,10177032
Resources & Corporate Governance ,Street Cleansing,WSC00,Employee wellbeing/Other employee expenses,0021,145.50,Team Prevent UK Ltd,148151,06/12/2012,10177032
Resources & Corporate Governance ,Domestic Waste Collection,WWC00,Employee wellbeing/Other employee expenses,0021,85.00,Team Prevent UK Ltd,148151,06/12/2012,10177032
Economy Development & Culture,Car Parks General,CPK01,Recruitment Expenses,0012,11.97,Team Prevent UK Ltd,148151,20/12/2012,10177703
Economy Development & Culture,Decrim. of Car Parking on street parking,DPE02,Recruitment Expenses,0012,47.88,Team Prevent UK Ltd,148151,20/12/2012,10177703
Economy Development & Culture,Family Lifestyle Project,LSD11,Recruitment Expenses,0012,19.95,Team Prevent UK Ltd,148151,20/12/2012,10177703
Resources & Corporate Governance ,Garage Salaries,WVR03,Recruitment Expenses,0012,19.95,Team Prevent UK Ltd,148151,20/12/2012,10177703
Housing Revenue Account ,Control Centre (HRA),CCE00,Employee wellbeing/Other employee expenses,0021,85.00,Team Prevent UK Ltd,148151,20/12/2012,10177703
Resources & Corporate Governance,Customer Support Services,CSS00,Employee wellbeing/Other employee expenses,0021,320.00,Team Prevent UK Ltd,148151,20/12/2012,10177703
Economy Development & Culture,Family Lifestyle Project,LSD11,Employee wellbeing/Other employee expenses,0021,56.55,Team Prevent UK Ltd,148151,20/12/2012,10177703
Economy Development & Culture,Planning Control,PLN01,Employee wellbeing/Other employee expenses,0021,40.00,Team Prevent UK Ltd,148151,20/12/2012,10177703
Resources & Corporate Governance ,Grounds Maintenance,WGM00,Employee wellbeing/Other employee expenses,0021,85.00,Team Prevent UK Ltd,148151,20/12/2012,10177703
Resources & Corporate Governance ,Caldecott Park Cafe,WGM02,Employee wellbeing/Other employee expenses,0021,17.50,Team Prevent UK Ltd,148151,20/12/2012,10177703
Resources & Corporate Governance,Handy man,WHM00,Employee wellbeing/Other employee expenses,0021,212.50,Team Prevent UK Ltd,148151,20/12/2012,10177703
Resources & Corporate Governance ,Street Cleansing,WSC00,Employee wellbeing/Other employee expenses,0021,85.00,Team Prevent UK Ltd,148151,20/12/2012,10177703
Resources & Corporate Governance ,Garage Salaries,WVR03,Employee wellbeing/Other employee expenses,0021,17.50,Team Prevent UK Ltd,148151,20/12/2012,10177703
Resources & Corporate Governance ,Domestic Waste Collection,WWC00,Employee wellbeing/Other employee expenses,0021,171.25,Team Prevent UK Ltd,148151,20/12/2012,10177703
Sustainable Environment ,Caldecott Park/Town Centre Area,PKS00,R&M External Contractors,0100,650.00,Stone Tech (Cleveland) Ltd,148176,20/12/2012,10177775
Capital Program ,Corporate Property Enhancements,CPE00,Capital Contract Payments,5000,1450.00,The Engineering Practice Ltd,148180,13/12/2012,10177506
Economy Development & Culture,Ken Marriott Leisure Centre,KML00,Other,0763,3450.00,Strategic Leisure,148196,13/12/2012,10177500
,Balance Sheet,BS,Car Salary Sacrifice,9243,1082.25,Fleethire Ltd,148197,13/12/2012,10177528
Housing Revenue Account ,Property Maintenance,MAN23,Other Miscellaneous Expenses,0444,516.06,Probrand Limited,148276,13/12/2012,10177546
Resources & Corporate Governance ,IT Procurement,CMP00,IT Capital Expenditure,5025,722.78,Probrand Limited,148276,13/12/2012,10177561
Resources & Corporate Governance ,IT Procurement,CMP00,IT Capital Expenditure,5025,722.78,Probrand Limited,148276,20/12/2012,10177890
Resources & Corporate Governance ,Customer and Information Strategy,CIS10,New Equipment,0300,2550.00,Softcat Ltd,148394,20/12/2012,10177901
Capital Program ,Pettiver Crescent,PCH00,Capital Contract Payments,5000,1150.00,"Gotch, Saunders & Surridge LLP , t/a GSS Architecture",148432,06/12/2012,10176631
Resources & Corporate Governance ,Highways,WHG00,External Contractor & Operator,0742,360.00,C P W Building Services,148437,13/12/2012,10177738
Resources & Corporate Governance,Handy man,WHM00,External Contractor & Operator,0742,240.00,C P W Building Services,148437,13/12/2012,10177738
Resources & Corporate Governance ,TREE WORKS,WGM01,Tools,0304,1614.12,Fuelwood (Warwick) Limited,148492,20/12/2012,10177883
Capital Program ,Corporate Property Enhancements,CPE00,Capital Contract Payments,5000,36978.84,Envirotech Building Services Ltd,148501,20/12/2012,10177116
Resources & Corporate Governance ,Human Resources Centralised Services,RES31,Training fees,0011,950.00,ANB Safety Ltd,148510,06/12/2012,10177407
Resources & Corporate Governance ,Human Resources Centralised Services,RES31,Other Miscellaneous Expenses,0444,22.95,ANB Safety Ltd,148510,06/12/2012,10177407
Resources & Corporate Governance,Corporate Property R&M,CPA01,R&M External Contractors,0100,2092.00,Munters Ltd,148583,13/12/2012,10177502
Capital Program ,Private Sector Renovation Loans,REN00,Capital Contract Payments,5000,4300.00,Ryan Roofing & Building,148623,06/12/2012,10177033
Economy Development & Culture,Grants and Subscriptions,LGS00,Grants To Voluntary Organisations,0720,1000.00,Fareham Youth Trust,148627,06/12/2012,10177148
Economy Development & Culture,Grants and Subscriptions,LGS00,Grants To Voluntary Organisations,0720,1000.00,XXXX Club,148628,06/12/2012,10177147
Economy Development & Culture,Grants and Subscriptions,LGS00,Grants To Voluntary Organisations,0720,585.50,Outlanders Gaming Club,148631,06/12/2012,10177144
Capital Program ,Open Spaces Refurbishment,LEI08,Capital Contract Payments,5000,3307.50,Kova Landscape Ltd,148635,13/12/2012,10177195
Resources & Corporate Governance,Handy man,WHM00,Materials,0303,510.00,Contour Showers Limited,148636,20/12/2012,10177419
Resources & Corporate Governance ,TREE WORKS,WGM01,Contract Hire,0220,1850.00,R J Cooper (Earthworks) & Planthire,148641,13/12/2012,10177507
Housing Revenue Account ,Supervision and Management General,MAN00,Movement Incentives,0454,500.00,REDACTED PERSONAL DATA,148654,13/12/2012,10177647
Resources & Corporate Governance ,Grounds Maintenance,WGM00,Other Insurance Excesses,0441,902.58,Aviva Insurance,148673,20/12/2012,10177785
,Balance Sheet,BS,Contributions To NNDR Pool,9476,1802083.00,Department for Communities & Local Govt,,04/12/2012,
,Balance Sheet,BS,Contributions To NNDR Pool,9476,1802082.00,Department for Communities & Local Govt,,18/12/2012,
